[Event "Masters Tournament (MTO)"]
[Site "Biel, Switzerland"]
[Date "2026.07.22"]
[Round "9.6"]
[White "Balabayeva, Xeniya"]
[Black "Cao, Qingfeng"]
[Result "0-1"]
[TimeControl "100+30+30sec/move"]
[WhiteTitle "-"]
[BlackTitle "-"]
[WhiteFideId "13719688"]
[BlackFideId "8627568"]
[WhiteElo "2302"]
[BlackElo "2365"]

1. d4 {[%clk 01:40:57]} {[%emt 00:00:01]} Nf6 {[%clk 01:40:40]} {[%emt
00:00:20]} 2. c4 {[%clk 01:41:20]} {[%emt 00:00:08]} e6 {[%clk 01:41:00]}
{[%emt 00:00:09]} 3. Nc3 {[%clk 01:41:45]} {[%emt 00:00:06]} Bb4 {[%clk
01:41:20]} {[%emt 00:00:09]} 4. Qc2 {[%clk 01:42:08]} {[%emt 00:00:08]} d5
{[%clk 01:38:23]} {[%emt 00:03:27]} 5. a3 {[%clk 01:42:32]} {[%emt 00:00:07]}
Bxc3+ {[%clk 01:38:46]} {[%emt 00:00:06]} 6. Qxc3 {[%clk 01:42:57]} {[%emt
00:00:05]} O-O {[%clk 01:37:20]} {[%emt 00:01:52]} 7. Nf3 {[%clk 01:40:25]}
{[%emt 00:03:05]} Nbd7 {[%clk 01:34:50]} {[%emt 00:03:00]} 8. Bg5 {[%clk
01:39:05]} {[%emt 00:01:51]} b6 {[%clk 01:34:26]} {[%emt 00:00:54]} 9. e3
{[%clk 01:31:54]} {[%emt 00:07:42]} Ba6 {[%clk 01:30:55]} {[%emt 00:04:00]} 10.
cxd5 {[%clk 01:14:20]} {[%emt 00:18:04]} Bxf1 {[%clk 01:30:57]} {[%emt
00:00:27]} 11. Kxf1 {[%clk 01:14:45]} {[%emt 00:00:05]} exd5 {[%clk 01:29:52]}
{[%emt 00:01:35]} 12. Qc6 {[%clk 01:04:19]} {[%emt 00:10:58]} Re8 {[%clk
01:28:42]} {[%emt 00:01:39]} 13. Rc1 {[%clk 00:51:44]} {[%emt 00:13:06]} Qc8
{[%clk 01:18:53]} {[%emt 00:10:19]} 14. a4 {[%clk 00:38:22]} {[%emt 00:13:52]}
Re6 {[%clk 01:05:48]} {[%emt 00:13:34]} 15. Qb5 {[%clk 00:26:15]} {[%emt
00:12:37]} c6 {[%clk 00:59:06]} {[%emt 00:07:12]} 16. Qd3 {[%clk 00:24:39]}
{[%emt 00:02:07]} c5 {[%clk 00:58:13]} {[%emt 00:01:23]} 17. b3 {[%clk
00:19:22]} {[%emt 00:05:47]} Rc6 {[%clk 00:48:35]} {[%emt 00:10:08]} 18. Ne5
{[%clk 00:12:09]} {[%emt 00:07:43]} Nxe5 {[%clk 00:47:59]} {[%emt 00:01:06]} 19.
dxe5 {[%clk 00:12:37]} {[%emt 00:00:02]} c4 {[%clk 00:46:41]} {[%emt 00:01:47]}
20. bxc4 {[%clk 00:10:25]} {[%emt 00:02:43]} Ne4 {[%clk 00:44:07]} {[%emt
00:03:04]} 21. Bf4 {[%clk 00:09:49]} {[%emt 00:01:06]} Rxc4 {[%clk 00:44:25]}
{[%emt 00:00:12]} 22. Rxc4 {[%clk 00:04:59]} {[%emt 00:05:20]} Qxc4 {[%clk
00:44:49]} 23. Qxc4 {[%clk 00:05:25]} {[%emt 00:00:10]} dxc4 {[%clk 00:45:15]}
{[%emt 00:00:04]} 24. Ke2 {[%clk 00:05:50]} {[%emt 00:00:04]} Nc3+ {[%clk
00:45:07]} {[%emt 00:00:38]} 25. Kd2 {[%clk 00:06:15]} {[%emt 00:00:05]} Nxa4
{[%clk 00:45:32]} {[%emt 00:00:05]} 26. Ra1 {[%clk 00:06:41]} {[%emt 00:00:04]}
b5 {[%clk 00:45:49]} {[%emt 00:00:13]} 27. e4 {[%clk 00:05:09]} {[%emt
00:02:03]} Nc5 {[%clk 00:45:40]} {[%emt 00:00:38]} 28. Kc3 {[%clk 00:05:18]}
{[%emt 00:00:21]} a5 {[%clk 00:44:44]} {[%emt 00:01:26]} 29. Be3 {[%clk
00:05:34]} {[%emt 00:00:14]} Nb3 {[%clk 00:45:00]} {[%emt 00:00:15]} 30. Rd1
{[%clk 00:04:15]} {[%emt 00:01:48]} a4 {[%clk 00:44:34]} {[%emt 00:00:57]} 31.
Kb2 {[%clk 00:04:39]} {[%emt 00:00:07]} b4 {[%clk 00:44:51]} {[%emt 00:00:13]}
32. Bb6 {[%clk 00:04:31]} {[%emt 00:00:37]} c3+ {[%clk 00:45:10]} {[%emt
00:00:11]} 33. Kc2 {[%clk 00:04:49]} {[%emt 00:00:13]} Nd2 {[%clk 00:45:15]}
{[%emt 00:00:24]} 34. Bc5 {[%clk 00:04:59]} {[%emt 00:00:21]} b3+ {[%clk
00:45:16]} {[%emt 00:00:29]} 0-1

[Event "Masters Tournament (MTO)"]
[Site "Biel, Switzerland"]
[Date "2026.07.22"]
[Round "9.7"]
[White "Ashwath, Kaushik"]
[Black "Sasikiran, Krishnan"]
[Result "0-1"]
[TimeControl "100+30+30sec/move"]
[WhiteTitle "-"]
[BlackTitle "-"]
[WhiteFideId "33387230"]
[BlackFideId "5004985"]
[WhiteElo "2278"]
[BlackElo "2546"]

1. d4 {[%clk 01:39:37]} Nf6 {[%clk 01:40:49]} {[%emt 00:00:11]} 2. c4 {[%clk
01:40:01]} {[%emt 00:00:06]} e6 {[%clk 01:39:51]} {[%emt 00:01:28]} 3. g3
{[%clk 01:40:06]} {[%emt 00:00:26]} d5 {[%clk 01:36:56]} {[%emt 00:03:24]} 4.
Nf3 {[%clk 01:40:22]} {[%emt 00:00:12]} Be7 {[%clk 01:37:01]} {[%emt 00:00:26]}
5. Bg2 {[%clk 01:40:36]} {[%emt 00:00:17]} O-O {[%clk 01:37:16]} {[%emt
00:00:15]} 6. O-O {[%clk 01:40:43]} {[%emt 00:00:22]} c6 {[%clk 01:37:01]}
{[%emt 00:00:46]} 7. Nc3 {[%clk 01:40:05]} {[%emt 00:01:08]} Nbd7 {[%clk
01:33:04]} {[%emt 00:04:28]} 8. Qd3 {[%clk 01:37:47]} {[%emt 00:02:47]} a5
{[%clk 01:17:39]} {[%emt 00:15:56]} 9. e4 {[%clk 01:31:05]} {[%emt 00:07:12]}
dxc4 {[%clk 01:05:08]} {[%emt 00:13:01]} 10. Qxc4 {[%clk 01:29:04]} {[%emt
00:02:31]} b5 {[%clk 01:03:17]} {[%emt 00:02:21]} 11. Qxc6 {[%clk 01:02:52]}
{[%emt 00:26:42]} Rb8 {[%clk 01:01:09]} {[%emt 00:02:37]} 12. Ne2 {[%clk
00:42:25]} {[%emt 00:20:57]} Bb7 {[%clk 00:51:34]} {[%emt 00:10:06]} 13. Qxb5
{[%clk 00:38:10]} {[%emt 00:04:44]} Bxe4 {[%clk 00:48:31]} {[%emt 00:03:33]} 14.
Qa4 {[%clk 00:33:12]} {[%emt 00:05:28]} Nd5 {[%clk 00:40:12]} {[%emt 00:08:48]}
15. Ne5 {[%clk 00:22:51]} {[%emt 00:10:52]} Bxg2 {[%clk 00:37:03]} {[%emt
00:03:40]} 16. Kxg2 {[%clk 00:17:23]} {[%emt 00:05:58]} Nxe5 {[%clk 00:36:56]}
{[%emt 00:00:37]} 17. dxe5 {[%clk 00:17:44]} {[%emt 00:00:07]} Rb4 {[%clk
00:36:30]} {[%emt 00:00:57]} 18. Qc2 {[%clk 00:15:45]} {[%emt 00:02:29]} Qa8
{[%clk 00:29:34]} {[%emt 00:07:26]} 19. Kg1 {[%clk 00:14:20]} {[%emt 00:01:55]}
Rc8 {[%clk 00:29:49]} {[%emt 00:00:16]} 20. Qd3 {[%clk 00:12:08]} {[%emt
00:02:42]} Rd8 {[%clk 00:28:34]} {[%emt 00:01:44]} 21. Qc2 {[%clk 00:11:21]}
{[%emt 00:01:18]} Rc8 {[%clk 00:24:04]} {[%emt 00:05:00]} 22. Qd3 {[%clk
00:11:25]} {[%emt 00:00:26]} a4 {[%clk 00:22:17]} {[%emt 00:02:17]} 23. Rd1
{[%clk 00:08:55]} {[%emt 00:02:59]} h5 {[%clk 00:20:58]} {[%emt 00:01:49]} 24.
h3 {[%clk 00:05:16]} {[%emt 00:04:10]} h4 {[%clk 00:19:24]} {[%emt 00:02:03]}
25. g4 {[%clk 00:04:47]} {[%emt 00:00:59]} Qb8 {[%clk 00:19:13]} {[%emt
00:00:41]} 26. f4 {[%clk 00:01:55]} {[%emt 00:03:22]} Qb7 {[%clk 00:14:56]}
{[%emt 00:04:47]} 27. Rb1 {[%clk 00:00:34]} {[%emt 00:01:52]} Rbc4 {[%clk
00:13:28]} {[%emt 00:01:58]} 28. b3 {[%clk 00:00:39]} {[%emt 00:00:25]} Rc2
{[%clk 00:13:30]} {[%emt 00:00:27]} 29. Bd2 {[%clk 00:00:34]} {[%emt 00:00:36]}
a3 {[%clk 00:13:29]} {[%emt 00:00:31]} 30. f5 {[%clk 00:00:36]} {[%emt
00:00:28]} Nb4 {[%clk 00:09:42]} {[%emt 00:04:17]} 31. Bxb4 {[%clk 00:00:35]}
{[%emt 00:00:31]} Qxb4 {[%clk 00:09:23]} {[%emt 00:00:49]} 32. Rbc1 {[%clk
00:00:32]} {[%emt 00:00:33]} Rxc1 {[%clk 00:07:43]} {[%emt 00:02:10]} 33. Nxc1
{[%clk 00:00:43]} {[%emt 00:00:18]} Rc3 {[%clk 00:07:48]} {[%emt 00:00:25]} 34.
Qd2 {[%clk 00:00:33]} {[%emt 00:00:41]} Qc5+ {[%clk 00:07:55]} {[%emt
00:00:22]} 35. Kf1 {[%clk 00:00:38]} {[%emt 00:00:25]} Rf3+ {[%clk 00:07:26]}
{[%emt 00:00:59]} 36. Kg2 {[%clk 00:00:54]} {[%emt 00:00:14]} Rg3+ {[%clk
00:07:39]} {[%emt 00:00:17]} 37. Kh2 {[%clk 00:01:17]} {[%emt 00:00:07]} Qxe5
{[%clk 00:08:03]} {[%emt 00:00:06]} 38. Qd4 {[%clk 00:00:46]} {[%emt 00:01:02]}
Rxh3+ {[%clk 00:08:23]} {[%emt 00:00:10]} 0-1

[Event "Masters Tournament (MTO)"]
[Site "Biel, Switzerland"]
[Date "2026.07.22"]
[Round "9.8"]
[White "Ganguly, Surya Shekhar"]
[Black "Georgescu, Lena"]
[Result "1/2-1/2"]
[TimeControl "100+30+30sec/move"]
[WhiteTitle "-"]
[BlackTitle "-"]
[WhiteFideId "5002150"]
[BlackFideId "1331973"]
[WhiteElo "2578"]
[BlackElo "2253"]

1. Nf3 {[%clk 01:40:21]} {[%emt 00:00:37]} Nf6 {[%clk 01:40:49]} {[%emt
00:00:12]} 2. c4 {[%clk 01:40:23]} {[%emt 00:00:27]} c5 {[%clk 01:41:13]}
{[%emt 00:00:07]} 3. Nc3 {[%clk 01:40:16]} {[%emt 00:00:35]} e6 {[%clk
01:41:37]} {[%emt 00:00:08]} 4. g3 {[%clk 01:40:00]} {[%emt 00:00:45]} b6
{[%clk 01:42:01]} {[%emt 00:00:06]} 5. e4 {[%clk 01:40:07]} {[%emt 00:00:24]}
Bb7 {[%clk 01:40:56]} {[%emt 00:01:35]} 6. d3 {[%clk 01:40:30]} {[%emt
00:00:06]} d6 {[%clk 01:40:15]} {[%emt 00:01:13]} 7. Bg2 {[%clk 01:40:54]}
{[%emt 00:00:04]} Be7 {[%clk 01:40:08]} {[%emt 00:00:37]} 8. O-O {[%clk
01:41:17]} {[%emt 00:00:07]} O-O {[%clk 01:40:08]} {[%emt 00:00:30]} 9. b3
{[%clk 01:41:40]} {[%emt 00:00:08]} a6 {[%clk 01:37:36]} {[%emt 00:03:02]} 10.
Bb2 {[%clk 01:42:00]} {[%emt 00:00:09]} Re8 {[%clk 01:35:49]} {[%emt 00:02:17]}
11. Ne1 {[%clk 01:36:14]} {[%emt 00:06:15]} Nc6 {[%clk 01:31:05]} {[%emt
00:05:16]} 12. Nc2 {[%clk 01:36:27]} {[%emt 00:00:17]} Nd7 {[%clk 01:24:59]}
{[%emt 00:06:36]} 13. d4 {[%clk 01:35:07]} {[%emt 00:01:49]} Bf6 {[%clk
01:19:04]} {[%emt 00:06:26]} 14. d5 {[%clk 01:24:06]} {[%emt 00:11:31]} Nd4
{[%clk 01:13:17]} {[%emt 00:06:17]} 15. f4 {[%clk 01:18:44]} {[%emt 00:05:52]}
Nxc2 {[%clk 01:09:06]} {[%emt 00:04:41]} 16. Qxc2 {[%clk 01:18:56]} {[%emt
00:00:17]} Bd4+ {[%clk 01:09:29]} {[%emt 00:00:07]} 17. Kh1 {[%clk 01:19:21]}
{[%emt 00:00:06]} exd5 {[%clk 01:05:00]} {[%emt 00:04:59]} 18. Nxd5 {[%clk
01:17:09]} {[%emt 00:02:42]} Bxb2 {[%clk 01:04:34]} {[%emt 00:00:56]} 19. Qxb2
{[%clk 01:17:33]} {[%emt 00:00:06]} Bxd5 {[%clk 01:04:54]} {[%emt 00:00:10]} 20.
cxd5 {[%clk 01:17:39]} {[%emt 00:00:23]} b5 {[%clk 01:02:38]} {[%emt 00:02:47]}
21. Rae1 {[%clk 01:17:29]} {[%emt 00:00:39]} f6 {[%clk 00:55:56]} {[%emt
00:07:12]} 22. h4 {[%clk 01:16:30]} {[%emt 00:01:29]} c4 {[%clk 00:50:29]}
{[%emt 00:05:58]} 23. bxc4 {[%clk 01:09:21]} {[%emt 00:07:38]} Qa5 {[%clk
00:41:11]} {[%emt 00:09:49]} 24. cxb5 {[%clk 01:07:28]} {[%emt 00:02:24]} axb5
{[%clk 00:41:35]} {[%emt 00:00:05]} 25. Re2 {[%clk 01:07:24]} {[%emt 00:00:34]}
Nc5 {[%clk 00:38:50]} {[%emt 00:03:14]} 26. Kh2 {[%clk 01:04:11]} {[%emt
00:03:43]} Qa4 {[%clk 00:35:19]} {[%emt 00:04:03]} 27. Rb1 {[%clk 00:58:34]}
{[%emt 00:06:06]} Nxe4 {[%clk 00:29:45]} {[%emt 00:06:05]} 28. Qxb5 {[%clk
00:58:05]} {[%emt 00:00:58]} f5 {[%clk 00:28:30]} {[%emt 00:01:46]} 29. Qxa4
{[%clk 00:37:04]} {[%emt 00:21:31]} Rxa4 {[%clk 00:28:53]} {[%emt 00:00:06]} 30.
Bxe4 {[%clk 00:35:23]} {[%emt 00:02:11]} Rexe4 {[%clk 00:23:38]} {[%emt
00:05:46]} 31. Rc2 {[%clk 00:32:18]} {[%emt 00:03:34]} Ra5 {[%clk 00:07:33]}
{[%emt 00:16:35]} 32. h5 {[%clk 00:30:30]} {[%emt 00:02:17]} Kf7 {[%clk
00:06:18]} {[%emt 00:01:46]} 33. Rb7+ {[%clk 00:24:43]} {[%emt 00:06:17]} Re7
{[%clk 00:06:33]} {[%emt 00:00:15]} 34. Rxe7+ {[%clk 00:24:54]} {[%emt
00:00:19]} Kxe7 {[%clk 00:06:59]} {[%emt 00:00:04]} 35. Rd2 {[%clk 00:25:10]}
{[%emt 00:00:14]} Kf6 {[%clk 00:05:44]} {[%emt 00:01:46]} 36. Kh3 {[%clk
00:24:30]} {[%emt 00:01:09]} g5 {[%clk 00:04:56]} {[%emt 00:01:18]} 37. hxg6
{[%clk 00:14:39]} {[%emt 00:10:21]} hxg6 {[%clk 00:05:21]} {[%emt 00:00:05]} 38.
a4 {[%clk 00:15:01]} {[%emt 00:00:08]} Rxa4 {[%clk 00:04:07]} {[%emt 00:01:44]}
39. Re2 {[%clk 00:15:28]} {[%emt 00:00:02]} g5 {[%clk 00:00:46]} {[%emt
00:03:52]} 40. Re6+ {[%clk 00:15:45]} {[%emt 00:00:13]} Kg7 {[%clk 00:01:07]}
{[%emt 00:00:09]} 41. fxg5 {[%clk 00:15:57]} {[%emt 00:00:18]} Rg4 {[%clk
00:26:47]} {[%emt 00:04:49]} 42. Rxd6 {[%clk 00:43:14]} {[%emt 00:03:14]} Rxg5
{[%clk 00:27:13]} {[%emt 00:00:05]} 43. Rd8 {[%clk 00:42:51]} {[%emt 00:00:52]}
Rg4 {[%clk 00:24:43]} {[%emt 00:03:00]} 44. d6 {[%clk 00:37:36]} {[%emt
00:05:45]} Rd4 {[%clk 00:24:37]} {[%emt 00:00:35]} 45. Kg2 {[%clk 00:38:00]}
{[%emt 00:00:06]} Kf6 {[%clk 00:15:40]} {[%emt 00:09:28]} 46. Kf3 {[%clk
00:34:49]} {[%emt 00:03:40]} Ke6 {[%clk 00:15:50]} {[%emt 00:00:20]} 47. Re8+
{[%clk 00:35:14]} {[%emt 00:00:06]} Kf6 {[%clk 00:15:19]} {[%emt 00:01:00]} 48.
Rd8 {[%clk 00:34:52]} {[%emt 00:00:53]} Ke6 {[%clk 00:15:44]} {[%emt 00:00:05]}
49. Re8+ {[%clk 00:35:02]} {[%emt 00:00:21]} Kf6 {[%clk 00:16:10]} {[%emt
00:00:03]} 50. Rd8 {[%clk 00:35:07]} {[%emt 00:00:25]} 1/2-1/2

[Event "Masters Tournament (MTO)"]
[Site "Biel, Switzerland"]
[Date "2026.07.22"]
[Round "9.9"]
[White "Ling, Chenxuan"]
[Black "Shukhman, Anna"]
[Result "0-1"]
[TimeControl "100+30+30sec/move"]
[WhiteTitle "-"]
[BlackTitle "-"]
[WhiteFideId "30983118"]
[BlackFideId "54180058"]
[WhiteElo "2166"]
[BlackElo "2443"]

1. d4 {[%clk 01:40:59]} {[%emt 02:21:08]} Nf6 {[%clk 01:40:54]} {[%emt
00:00:07]} 2. c4 {[%clk 01:41:08]} {[%emt 00:00:19]} g6 {[%clk 01:41:20]}
{[%emt 00:00:04]} 3. Nc3 {[%clk 01:41:24]} {[%emt 00:00:13]} Bg7 {[%clk
01:41:46]} {[%emt 00:00:05]} 4. e4 {[%clk 01:41:48]} {[%emt 00:00:06]} d6
{[%clk 01:42:13]} {[%emt 00:00:03]} 5. h3 {[%clk 01:42:01]} {[%emt 00:00:17]}
O-O {[%emt 00:00:33]} 6. Bg5 {[%clk 01:42:03]} {[%emt 00:00:07]} c5 {[%clk
01:42:49]} {[%emt 00:00:12]} 7. d5 {[%clk 01:42:26]} {[%emt 00:00:07]} e6
{[%clk 01:43:13]} {[%emt 00:00:06]} 8. Bd3 {[%clk 01:42:48]} {[%emt 00:00:08]}
exd5 {[%clk 01:43:38]} {[%emt 00:00:05]} 9. exd5 {[%clk 01:43:12]} {[%emt
00:00:05]} Nbd7 {[%clk 01:43:47]} {[%emt 00:00:22]} 10. f4 {[%clk 01:41:17]}
{[%emt 00:02:25]} Qe8+ {[%clk 01:30:06]} {[%emt 00:14:10]} 11. Nge2 {[%clk
01:36:42]} {[%emt 00:05:04]} Nh5 {[%clk 01:29:41]} {[%emt 00:00:56]} 12. O-O
{[%clk 01:17:13]} {[%emt 00:19:59]} Qe3+ {[%clk 01:27:23]} {[%emt 00:02:48]} 13.
Kh1 {[%clk 01:14:52]} {[%emt 00:02:52]} Ne5 {[%clk 01:26:51]} {[%emt 00:01:01]}
14. fxe5 {[%clk 01:08:30]} {[%emt 00:06:53]} Qxg5 {[%clk 01:27:17]} {[%emt
00:00:04]} 15. exd6 {[%clk 01:03:03]} {[%emt 00:05:57]} Be5 {[%clk 01:15:37]}
{[%emt 00:12:11]} 16. Ne4 {[%clk 00:57:36]} {[%emt 00:05:56]} Qd8 {[%clk
01:15:04]} {[%emt 00:01:02]} 17. Qd2 {[%clk 00:53:10]} {[%emt 00:04:57]} b6
{[%clk 01:02:53]} {[%emt 00:12:42]} 18. Rad1 {[%clk 00:49:35]} {[%emt
00:04:04]} f5 {[%clk 01:01:24]} {[%emt 00:01:59]} 19. Ng5 {[%clk 00:48:21]}
{[%emt 00:01:43]} Qxd6 {[%clk 00:59:46]} {[%emt 00:02:09]} 20. Nf3 {[%clk
00:44:02]} {[%emt 00:04:49]} Bg7 {[%clk 01:00:00]} {[%emt 00:00:16]} 21. Rfe1
{[%clk 00:42:45]} {[%emt 00:01:47]} Bd7 {[%clk 00:58:17]} {[%emt 00:02:13]} 22.
Nc3 {[%clk 00:39:54]} {[%emt 00:03:21]} a6 {[%clk 00:57:17]} {[%emt 00:01:31]}
23. a3 {[%clk 00:37:24]} {[%emt 00:03:00]} h6 {[%clk 00:53:35]} {[%emt
00:04:12]} 24. Rb1 {[%clk 00:32:42]} {[%emt 00:05:12]} g5 {[%clk 00:50:31]}
{[%emt 00:03:34]} 25. Ne2 {[%clk 00:31:23]} {[%emt 00:01:48]} Rae8 {[%clk
00:47:19]} {[%emt 00:03:42]} 26. b4 {[%clk 00:28:03]} {[%emt 00:03:50]} Rxe2
{[%clk 00:37:18]} {[%emt 00:10:31]} 27. Rxe2 {[%clk 00:24:09]} {[%emt
00:04:24]} g4 {[%clk 00:37:39]} {[%emt 00:00:09]} 28. bxc5 {[%clk 00:21:12]}
{[%emt 00:03:27]} Ng3+ {[%clk 00:31:48]} {[%emt 00:06:20]} 29. Kg1 {[%clk
00:21:34]} {[%emt 00:00:08]} Nxe2+ {[%clk 00:32:13]} {[%emt 00:00:05]} 30. Qxe2
{[%clk 00:21:56]} {[%emt 00:00:08]} Qxc5+ {[%clk 00:32:39]} {[%emt 00:00:04]}
31. Kh1 {[%clk 00:22:21]} {[%emt 00:00:05]} gxf3 {[%clk 00:33:05]} {[%emt
00:00:05]} 32. Qxf3 {[%clk 00:22:46]} {[%emt 00:00:04]} Re8 {[%clk 00:29:37]}
{[%emt 00:03:58]} 33. Qh5 {[%clk 00:22:54]} {[%emt 00:00:22]} Qf2 {[%clk
00:28:27]} {[%emt 00:01:39]} 0-1

[Event "Masters Tournament (MTO)"]
[Site "Biel, Switzerland"]
[Date "2026.07.22"]
[Round "9.10"]
[White "Baenziger, Fabian"]
[Black "Harish, Neeraj"]
[Result "1-0"]
[TimeControl "100+30+30sec/move"]
[WhiteTitle "-"]
[BlackTitle "-"]
[WhiteFideId "1330110"]
[BlackFideId "30958130"]
[WhiteElo "2435"]
[BlackElo "2201"]

1. Nf3 {[%clk 01:40:54]} {[%emt 00:00:04]} d5 {[%clk 01:40:37]} {[%emt
00:00:25]} 2. g3 {[%clk 01:41:06]} {[%emt 00:00:17]} Nd7 {[%clk 01:40:51]}
{[%emt 00:00:16]} 3. d4 {[%clk 01:40:31]} {[%emt 00:01:05]} Nb6 {[%clk
01:41:13]} {[%emt 00:00:09]} 4. Bg2 {[%clk 01:39:32]} {[%emt 00:01:28]} Bf5
{[%clk 01:41:28]} {[%emt 00:00:15]} 5. Nc3 {[%clk 01:36:32]} {[%emt 00:03:30]}
e6 {[%clk 01:40:52]} {[%emt 00:01:06]} 6. Nh4 {[%clk 01:34:16]} {[%emt
00:02:45]} Bg4 {[%clk 01:40:43]} {[%emt 00:00:40]} 7. Qd3 {[%clk 01:33:19]}
{[%emt 00:01:27]} Be7 {[%clk 01:36:38]} {[%emt 00:04:35]} 8. e4 {[%clk
01:31:19]} {[%emt 00:02:30]} Bxh4 {[%clk 01:31:18]} {[%emt 00:05:50]} 9. gxh4
{[%clk 01:30:45]} {[%emt 00:01:04]} Qxh4 {[%clk 01:24:31]} {[%emt 00:07:17]} 10.
Nb5 {[%clk 01:29:15]} {[%emt 00:02:00]} Rc8 {[%clk 01:18:59]} {[%emt 00:06:02]}
11. Nxa7 {[%clk 01:21:52]} {[%emt 00:07:53]} Rd8 {[%clk 01:18:08]} {[%emt
00:01:22]} 12. Bf4 {[%clk 01:05:44]} {[%emt 00:16:38]} Rd7 {[%clk 01:12:13]}
{[%emt 00:06:24]} 13. Nb5 {[%clk 01:02:04]} {[%emt 00:04:10]} Be2 {[%clk
01:03:38]} {[%emt 00:09:05]} 14. Qxe2 {[%clk 01:02:06]} {[%emt 00:00:28]} Qxf4
{[%clk 01:03:53]} {[%emt 00:00:15]} 15. exd5 {[%clk 01:02:01]} {[%emt
00:00:36]} Nxd5 {[%clk 01:02:16]} {[%emt 00:02:07]} 16. c4 {[%clk 01:00:50]}
{[%emt 00:01:40]} Nde7 {[%clk 00:57:48]} {[%emt 00:04:58]} 17. Qe3 {[%clk
00:54:54]} {[%emt 00:06:25]} Qh4 {[%clk 00:49:46]} {[%emt 00:08:33]} 18. Qa3
{[%clk 00:54:09]} {[%emt 00:01:16]} Nc6 {[%clk 00:40:33]} {[%emt 00:09:42]} 19.
O-O {[%clk 00:36:42]} {[%emt 00:17:57]} Qe7 {[%clk 00:28:52]} {[%emt 00:12:12]}
20. Qa4 {[%clk 00:24:38]} {[%emt 00:12:34]} Kf8 {[%clk 00:21:32]} {[%emt
00:07:49]} 21. d5 {[%clk 00:23:40]} {[%emt 00:01:29]} Nd8 {[%clk 00:19:36]}
{[%emt 00:02:25]} 22. Rad1 {[%clk 00:23:59]} {[%emt 00:00:10]} Nf6 {[%clk
00:13:23]} {[%emt 00:06:43]} 23. Nxc7 {[%clk 00:23:04]} {[%emt 00:01:25]} g6
{[%clk 00:12:35]} {[%emt 00:01:19]} 24. Nb5 {[%clk 00:19:58]} {[%emt 00:03:36]}
exd5 {[%clk 00:12:43]} {[%emt 00:00:23]} 25. cxd5 {[%clk 00:18:41]} {[%emt
00:01:46]} Kg7 {[%clk 00:12:30]} {[%emt 00:00:43]} 26. Rfe1 {[%clk 00:17:35]}
{[%emt 00:01:36]} Qc5 {[%clk 00:12:45]} {[%emt 00:00:15]} 27. Nc3 {[%clk
00:17:33]} {[%emt 00:00:32]} Qd6 {[%clk 00:10:14]} {[%emt 00:03:00]} 28. Re3
{[%clk 00:10:47]} {[%emt 00:07:16]} h5 {[%clk 00:08:41]} {[%emt 00:02:04]} 29.
h3 {[%clk 00:11:06]} {[%emt 00:00:11]} h4 {[%clk 00:08:25]} {[%emt 00:00:46]}
30. Bf3 {[%clk 00:11:19]} {[%emt 00:00:17]} b6 {[%clk 00:06:50]} {[%emt
00:02:05]} 31. Rd4 {[%clk 00:08:14]} {[%emt 00:03:35]} g5 {[%clk 00:04:12]}
{[%emt 00:03:08]} 32. Nb5 {[%clk 00:07:12]} {[%emt 00:01:32]} Qb8 {[%clk
00:03:30]} {[%emt 00:01:12]} 33. Qb4 {[%clk 00:04:40]} {[%emt 00:03:02]} Nb7
{[%clk 00:02:10]} {[%emt 00:01:49]} 34. d6 {[%clk 00:05:04]} {[%emt 00:00:06]}
Rc8 {[%clk 00:02:25]} {[%emt 00:00:16]} 35. Qd2 {[%clk 00:04:32]} {[%emt
00:01:01]} Rc5 {[%clk 00:01:18]} {[%emt 00:01:37]} 36. a4 {[%clk 00:04:57]}
{[%emt 00:00:05]} Qc8 {[%clk 00:01:39]} {[%emt 00:00:10]} 37. b4 {[%clk
00:03:26]} {[%emt 00:02:01]} Rc2 {[%clk 00:01:18]} {[%emt 00:00:51]} 38. Qd3
{[%clk 00:03:10]} {[%emt 00:00:45]} Rc1+ {[%clk 00:01:20]} {[%emt 00:00:28]} 39.
Bd1 {[%clk 00:01:06]} {[%emt 00:02:34]} Nd8 {[%clk 00:01:09]} {[%emt 00:00:42]}
40. Qd2 {[%clk 00:01:23]} {[%emt 00:00:13]} Ne6 {[%clk 00:00:57]} {[%emt
00:00:42]} 41. Rxe6 {[%clk 00:30:23]} {[%emt 00:01:29]} fxe6 {[%clk 00:29:52]}
{[%emt 00:01:36]} 42. Qxg5+ {[%clk 00:28:49]} {[%emt 00:02:04]} Kf7 {[%clk
00:28:48]} {[%emt 00:01:34]} 43. Kh2 {[%clk 00:29:11]} {[%emt 00:00:07]} Rxd1
{[%clk 00:22:40]} {[%emt 00:06:39]} 44. Rxd1 {[%clk 00:28:51]} {[%emt
00:00:49]} Qc2 {[%clk 00:21:45]} {[%emt 00:01:26]} 45. Rg1 {[%clk 00:27:26]}
{[%emt 00:01:55]} e5 {[%clk 00:21:12]} {[%emt 00:01:04]} 46. Qxe5 {[%clk
00:23:13]} {[%emt 00:04:42]} Qxf2+ {[%clk 00:21:15]} {[%emt 00:00:26]} 47. Rg2
{[%clk 00:23:39]} {[%emt 00:00:04]} Qf3 {[%clk 00:20:55]} {[%emt 00:00:50]} 48.
Qg5 {[%clk 00:22:07]} {[%emt 00:02:02]} Qf1 {[%clk 00:18:23]} {[%emt 00:03:03]}
49. Nc7 {[%clk 00:20:45]} {[%emt 00:01:52]} 1-0